Cogmind - Beta 13 @@@ ROGUE MODE // 2024.07.22 @ 15:21:14 Player: Johge Result: Destroyed by D-53 Grenadier with Mini Grenade Launcher Performance ------------- Evolutions (0) 0 Regions Visited (2) 400 Robots Destroyed (14) 70 Value Destroyed (319) 319 Prototype IDs (0) 0 Alien Tech Used (0) 0 Bonus (7) 7 TOTAL SCORE: 796 Bonus ------- Follower Combat Kills 14 Friendly Fire -7 Cogmind --------- Core Integrity 0/250 Matter 266/300 Energy 100/100 System Corruption 9% Temperature Cool (0) Movement Core (150) Ox2 Location -10/Mines Parts ------- > --- POWER (1) -------- (None) > --- PROPULSION (2) --- (None) > --- UTILITY (2) ------ Small Storage Unit > --- WEAPON (2) ------- Makeshift Axe > --- INVENTORY (8) ---- Light Ion Engine Light Ion Engine Improved Heat Sink Small Laser Light Assault Rifle Light Assault Rifle Peak State ------------ > --- POWER ------------ Ion Engine > --- PROPULSION ------- Light Treads > --- UTILITY ---------- Small Storage Unit Signal Interpreter > --- WEAPON ----------- Makeshift Axe > --- INVENTORY -------- Light Ion Engine Light Ion Engine Improved Heat Sink Small Laser Light Assault Rifle Light Assault Rifle [Rating: 8] Favorites ----------- Power Ion Engine Engine Ion Engine Propulsion Light Treads Treads Light Treads Utility Small Storage Unit Storage Small Storage Unit Processor Signal Interpreter Weapon Light Assault Rifle Energy Gun Small Laser Ballistic Gun Light Assault Rifle Launcher Grenade Launcher Slashing Weapon Makeshift Axe Build | -11 -10 -10 ------- Run | Yrd Mat Min Slots Evolved . | . . . Power . | . . . Propulsion . | . . . Utility . | . . . Weapon . | . . . Parts Attached 14 | 6 6 2 Power 3 | 1 2 . Engine 3 | 1 2 . Core . | . . . Reactor . | . . . Propulsion 4 | 2 2 . Treads 4 | 2 2 . Leg . | . . . Wheel . | . . . Hover . | . . . Flight . | . . . Utility 2 | 1 1 . Device . | . . . Storage 1 | 1 . . Processor 1 | . 1 . Hackware . | . . . Protection . | . . . Artifact . | . . . Weapon 5 | 2 1 2 Energy Gun 1 | . 1 . Energy Cannon . | . . . Ballistic Gun 2 | 2 . . Ballistic Cannon . | . . . Launcher 1 | . . 1 Special Weapon . | . . . Impact Weapon . | . . . Slashing Weapon 1 | . . 1 Piercing Weapon . | . . . Special Melee Weapon . | . . . Unidentified Prototypes . | . . . Parts Lost 7 | . 1 6 Power 1 | . . 1 Propulsion 2 | . . 2 Utility 1 | . . 1 Weapon 3 | . 1 2 Highest Loss Streak 6 | . 1 6 To Critical Strikes . | . . . Average Slot Usage (%) 95 | . 91 99 Engine 13 | . 12 14 Treads 26 | . 25 27 Storage 14 | . 14 14 Processor 12 | . 10 14 Energy Gun 7 | . . 13 Ballistic Gun 19 | . 25 14 Naked Turns . | . . . Heaviest Build 14 | 10 12 14 Greatest Support 40 | 40 40 40 Greatest Overweight (x) . | . . . Average Overweight (x) . | . . . Largest Inventory Capacity 8 | 8 8 8 Average Capacity 7 | 6 8 8 Most Carried 7 | 3 5 7 Average Carried 3 | . 3 4 Final Capacity 8 | 8 8 8 Final Carried 6 | . 4 6 Class Distribution -------------------- 100% | Mutant Dominant Class ---------------- Mutant | -10/Materials Mutant | -10/Mines Resources | -11 -10 -10 ----------- Run | Yrd Mat Min Matter Collected 432 | 221 197 14 Remotely . | . . . Salvage Created 555 | . 453 102 Parts 31 | . 23 8 Haulers Intercepted . | . . . Recyclers Shooed 1 | . . 1 Parts Field Recycled . | . . . Retrieved Matter . | . . . Parts Self-Destructed . | . . . Prevented . | . . . Kills | -11 -10 -10 ------- Run | Yrd Mat Min Combat Hostiles Destroyed 21 | . 7 14 Melee 1 | . . 1 Guns 11 | . 7 4 AOE 9 | . . 9 Classes Destroyed 5 | . 3 2 Recycler 2 | . 2 . Watcher 1 | . 1 . Swarmer 4 | . . 4 Grunt 7 | . 7 . Assembled 10 | . . 10 Best Kill Streak 10 | . 4 10 Combat Bots Only 10 | . 3 10 Max Kills in Single Turn 4 | . 1 4 Gunslinging . | . . . Exploded 4 | . . 4 Melee 1 | . . 1 Uniques/NPCs Destroyed . | . . . Combat | -11 -10 -10 -------- Run | Yrd Mat Min Hostile Shots Fired 132 | . 77 55 Missed 47 | . 28 19 Damage Taken 1243 | . 616 627 Core 267 | . 141 126 Absorbed by Shields . | . . . Regen/Repaired (Parts) 265 | . 265 . Core Remaining (%) 100 | 100 . . Volleys Fired 78 | . 60 18 Largest 2 | . 2 2 Hottest 60 | . 40 60 Shots Fired 135 | . 103 32 Gun 131 | . 103 28 Cannon . | . . . Launcher 4 | . . 4 Special . | . . . Kinetic 121 | . 103 18 Thermal 10 | . . 10 Explosive 4 | . . 4 Electromagnetic . | . . . Robot Hit Streak 12 | . 12 5 Robot Miss Streak 5 | . 5 4 Penetration Max . | . . . Secondary Targets 2 | . 1 1 Max Gunslinging Chain 1 | . 1 1 Shots Hit Robots 85 | . 70 15 Core Hits 59 | . 30 29 Critical Kills . | . . . Critical Parts Destroyed . | . . . Critical Strikes . | . . . Melee Attacks 3 | . . 3 Impact . | . . . Slashing 3 | . . 3 Piercing . | . . . Sneak Attacks . | . . . Combat Hostiles . | . . . Follow-up Attacks . | . . . Damage Inflicted 1485 | . 558 927 Guns 702 | . 558 144 Cannons . | . . . Explosions 712 | . . 712 Melee 55 | . . 55 Ramming 16 | . . 16 Kinetic 646 | . 558 88 Thermal 56 | . . 56 Explosive 712 | . . 712 Electromagnetic . | . . . Impact . | . . . Slashing 55 | . . 55 Piercing . | . . . Highest Corruption 9 | . . 9 Average Corruption 9 | . . 9 Corruption Purged . | . . . Corruption Blocked . | . . . Overload Shots . | . . . Overflow Damage 58 | . . 58 Projectiles . | . . . Explosions 20 | . . 20 Melee 38 | . . 38 Knockbacks . | . . . Impact . | . . . Kinetic . | . . . Secondary . | . . . Self-Inflicted Damage . | . . . Shots . | . . . Rammed 5 | . . 5 Targets Rammed 5 | . . 5 Kicked . | . . . Crushed . | . . . Highest Temperature 40 | . 40 40 Average Temperature 15 | . 14 17 Received Heat Transfer 348 | . 339 9 Siege Activations . | . . . Robots Corrupted . | . . . Combat Hostiles . | . . . Parts Fried . | . . . Impact Corruptions . | . . . Robots Melted . | . . . Combat Hostiles . | . . . Parts Melted . | . . . Heat Transferred 125 | . . 125 Parts Sabotaged . | . . . Parts Stolen . | . . . Parts Stripped . | . . . Power Chain Reactions . | . . . Alert | -11 -10 -10 ------- Run | Yrd Mat Min Peak Influence 219 | . 219 163 Initial 7 | . . 7 Average 74 | . 99 61 Maximum Alert Level 1 | . 1 . Low Security (%) 96 | 100 93 100 Level 1 3 | . 6 . Level 2 . | . . . Level 3 . | . . . Level 4 . | . . . Level 5 . | . . . High Security . | . . . Max Security . | . . . Squads Dispatched 1 | . 1 . Investigation . | . . . Extermination . | . . . Reinforcement 1 | . 1 . Assault . | . . . Garrison . | . . . Intercept . | . . . Searches Triggered . | . . . Construction Impeded . | . . . Haulers Reinforced . | . . . Active Scanning Responses . | . . . Cargo Convoy Interrupts . | . . . Stealth | -11 -10 -10 --------- Run | Yrd Mat Min Distress Signals 1 | . 1 . Communications Jammed . | . . . Distress Signals . | . . . Times Spotted 42 | . 14 28 Peak Tracking Total 19 | . 4 19 Tactical Retreats . | . . . Traps | -11 -10 -10 ------- Run | Yrd Mat Min Traps Triggered . | . . . Indirectly . | . . . Trap Hack Attempts . | . . . Triggered . | . . . Disarmed . | . . . Reprogrammed . | . . . Reused . | . . . Traps Extracted . | . . . Installed . | . . . Triggered . | . . . Machines | -11 -10 -10 ---------- Run | Yrd Mat Min Machines Disabled . | . . . Max in Single Turn . | . . . Machines Repaired . | . . . Machines Dismantled . | . . . Machines Sabotaged . | . . . Overloaded Fab Kills . | . . . Hacking | -11 -10 -10 --------- Run | Yrd Mat Min Machines Accessed 1 | . 1 . Terminals . | . . . Fabricators . | . . . Repair Stations 1 | . 1 . Recycling Units . | . . . Scanalyzers . | . . . Garrison Access . | . . . Total Hacks 8 | . 8 . Successful 6 | . 6 . Failed 2 | . 2 . Catastrophic . | . . . Database Lockouts . | . . . Manual . | . . . Terminals . | . . . Fabricators . | . . . Repair Stations 8 | . 8 . Recycling Units . | . . . Scanalyzers . | . . . Garrison Access . | . . . Terminal Hacks . | . . . Fabricator Hacks . | . . . Repair Station Hacks 6 | . 6 . Scan Component 3 | . 3 . Repair 3 | . 3 . Recycling Unit Hacks . | . . . Scanalyzer . | . . . Garrison Access Hacks . | . . . Unauthorized Hacks . | . . . Terminals . | . . . Fabricators . | . . . Repair Stations . | . . . Recycling Units . | . . . Scanalyzers . | . . . Garrison Access . | . . . Data Cores Recovered . | . . . Used . | . . . Hacking Detections . | . . . Full Trace Events . | . . . Feedback Events . | . . . Feedback Blocked . | . . . Robot Schematics Acquired . | . . . Robots Built . | . . . Authchips . | . . . Time . | . . . Total Robot Build Rating . | . . . Part Schematics Acquired . | . . . Parts Built . | . . . Authchips . | . . . Time . | . . . Total Part Build Rating . | . . . Parts Repaired 3 | . 3 . Time 78 | . 78 . Parts Recycled . | . . . Recycled Matter . | . . . Retrieved Matter . | . . . Retrieved Components . | . . . Parts Scanalyzed . | . . . Part Schematics Acquired . | . . . Parts Damaged . | . . . Bothacking | -11 -10 -10 ------------ Run | Yrd Mat Min Used RIF Installer . | . . . Robots Hacked . | . . . Non-combat . | . . . Combat . | . . . Robot Hacks Applied . | . . . Relay Couplers Released . | . . . Fabnet Peak Effective % . | . . . Robots Rewired . | . . . Allies Hacked . | . . . Hacks Repelled . | . . . Allies | -11 -10 -10 -------- Run | Yrd Mat Min Total Allies 2 | . . 2 Largest Group 2 | . . 2 Highest-Rated Group 35 | . . 35 Highest-Rated Ally 31 | . . 31 Total Orders . | . . . Ally Attacks 11 | . . 11 Total Damage 108 | . . 108 Kills 4 | . . 4 Allies Corrupted . | . . . Allies Melted . | . . . Intel | -11 -10 -10 ------- Run | Yrd Mat Min Robot Analysis Total . | . . . Derelict Logs Recovered . | . . . Drone Launches . | . . . Drone Recoveries . | . . . Exploration | -11 -10 -10 ------------- Run | Yrd Mat Min Turns Passed 927 | 65 411 451 Spaces Moved 372 | 32 99 241 Core 5 | 5 . . Treads 367 | 27 99 241 Legs . | . . . Wheels . | . . . Hover . | . . . Flight . | . . . Fastest Speed 50 | 50 160 160 Average Speed 158 | 142 160 160 Slowest Speed 160 | 160 160 160 Overloaded Moves . | . . . Propulsion Burnouts . | . . . Robots Hopped . | . . . Cave-ins Triggered . | . . . Exploration Rate (%) 24 | 3 19 50 Regions Visited 2 Branch Regions 1 Pre-discovered Areas . | . . . Known Exits Taken 1 | . 1 . Unknown Exits Taken 1 | 1 . . Scrap Searched 1 | . . 1 Spaces Dug . | . . . Terrain Destroyed 32 | . . 32 Melee . | . . . Projectile . | . . . AOE 32 | . . 32 Terrain Rammed . | . . . Walls Destroyed . | . . . Machines Disabled . | . . . Actions | -11 -10 -10 --------- Run | Yrd Mat Min Total 592 | 51 269 272 Wait 102 | 8 94 . Move 370 | 31 98 241 Hop . | . . . Pick Up 19 | 6 10 3 Fast Attach . | . . . Attach 12 | 6 5 1 Detach . | . . . Swap 2 | . 1 1 Drop 1 | . 1 . Fire 78 | . 60 18 Melee 3 | . . 3 Ram . | . . . Kick . | . . . Crush 5 | . . 5 Escape Stasis . | . . . Rewire . | . . . Trap . | . . . Miscellaneous . | . . . Route ------- -11/Scrapyard -10/Materials -10/Mines (discovered 2 exits: *Mat x2) History --------- Turn | Location | Event 34 | -11/Scrapyard | Discovered new exit (range 14) 66 | -11/Scrapyard | Entered Materials 186 | -10/Materials | Discovered new exit (range 8) 269 | -10/Materials | Identified exit to Mines 313 | -10/Materials | Repaired Lgt. Treads 335 | -10/Materials | Build established: Mutant 341 | -10/Materials | Repaired Ion Engine 369 | -10/Materials | Repaired Lgt. Treads 426 | -10/Materials | Core integrity fell below 50% 477 | -10/Materials | Entered Mines 495 | -10/Mines | Discovered new exit (range 5) 501 | -10/Mines | Identified exit to Materials 570 | -10/Mines | Discovered exit to Materials (range 13) 901 | -10/Mines | Assembled infested the area 902 | -10/Mines | A weapon hastily lodged in a ceiling crevice suddenly fell to the ground 927 | -10/Mines | Core integrity fell below 20% 928 | -10/Mines | Destroyed by D-53 Grenadier with Mini Grenade Launcher Last Messages --------------- as-95076 destroyed. as-87187 destroyed. Destroyed Asb. Hover Unit. as-52318 destroyed. as-79935 destroyed. The unstable cave ceiling collapses. Grenade Launcher destroyed. Lgt. Treads destroyed. Acquired Mak. Axe. Lgt. Assault Rifle destroyed. Destroyed Asb. Hover Unit. as-37002 destroyed. K-01 Serf collects debris. Lgt. Treads destroyed. System corrupted by crushing effect (+4). Signal Interpreter destroyed. System corrupted by crushing effect (+5). Ion Engine destroyed. C-30 ARC bursts open, deploying its payload. D-53 Grenadier unfolds itself. Map ----- +----------------------------------------------------+ | #????????# ##??????????????????????????? | | #????????# #??????????????????????????? | | #????????# #??????????????????????????? | | #????????## ##?????????????????????????? | | #????????## ##????????????????????????? | | #??????### #????????????????????????? | | ##????## #????????????????????????? | | ##???# ##??????????#????????????? | | #??## % ## ##???????????? | | #### ##??????????? | | ??????????? | | % % ## ???????????? | | #### #### ????????????? | | ##?# ##???# ######### #????????????? | | ##?## ##?????####???????? #????????????? | | ??## ##??????????????#### #????????????? | | ?## ##??????????????## #??###???????? | | ?# ##??????????????## #?# ##??????? | | ?# ##?????????????## ## #??????? | | ?## ############### #??????? | | ??# [%= #??????? | | ??# dd % % #??????? | | ??## ############ = kk* #???????? | | ???#### ##?????????## ##???????? | | ??????####?????????## aa #????????? | | ???????????????????# a @a ##????????? | | ???????????????????### ##aa #####?????????? | | ?????????????????????# ##*!##?????????????? | | ?????????????????????# ##*!#??????????????? | | ?????????????????????# ##=%#??????????????? | | ?????????????????????# ?#!a#??????????????? | | ?????????????????????# ? ??????????????? | | ?????????????????????# ? ??????????????? | | ?????????????????????# ? ??????????????? | | ?????????????????????? ? ?????????????? | | ?????????????????????? ? ?????????????? | | ?????????????????????? ? ?????????????? | | ???????????????????????? a ?????????????? | | ????????????????????????# ##????????????? | | ?????????????????????????# ?????????????? | | ?????????????????????????? ??????????????? | | ??????????????????????????????????????????? | | ??????????????????????????????????????????? | | ??????????????????????????????????????????? | | ??????????????????????????????????????????? | | ??????????????????????????????????????????? | | ??????????????????????????????????????????? | | ??????????????????????????????????????????? | | ??????????????????????????????????????????? | | ??????????????????????????????????????????? | +----------------------------------------------------+ Best States ------------- Heat Dissipation 25 Energy Generation 10 Energy Capacity 250 Matter Stores 300 Matter Capacity 300 Sight Range 16 Terrain Scan Density 10 Evasion (%) 40 Recoil Reduction 2 Item Schematics ----------------- None Robot Schematics ------------------ None Fabricated ------------ Nothing Alien Tech Used ----------------- None Achievements -------------- None Challenges ------------ None Game ------ Seed DiametricThiefMicrothruster Manual? 0 Play Time 00:09:37 Cumulative 28.6 hours Start 2024.07.22 @ 15:14:30 End 2024.07.22 @ 15:21:14 Sessions 1 Manual Loads 0 Difficulty Rogue Special Mode None Game No. 48 Rogue 48 Adventurer 0 Explorer 0 Win Type - Total 0 Types 0/0/0/0/0/0/0/0/0 Lore% 21 Gallery% 25 Achievement% 21 Wizard Run 0 Options --------- Layout 1 ASCII 0 Keyboard 0 Movement Mouse Keybinds 0 Fullscreen 1 Font 24/Smallcaps Map View 50x35 Zoom Use 0% Tactical HUD 0 Map Filters NONE Filters NONE Steam 1 RUN: 6cf7fe70-ee07-41e2-a520-e80b3207e0ca